bitfinex-derivatives/quotes_BTCF0:USTF0_20251228
["timestamp","ask_amount","ask_price","bid_price","bid_amount"]
[1766891419646,0.15384,87865.0,87840.0,0.05696]
[1766891419647,0.0113904,87855.0,87840.0,0.05696]
[1766891419849,0.02449759,87854.0,87838.0,0.04496]
[1766891420050,0.02449759,87853.0,87835.0,0.057]
[1766891420350,0.02449759,87852.0,87835.0,0.057]
[1766891420533,0.02449759,87851.0,87835.0,0.057]
[1766891420734,0.02449759,87850.0,87835.0,0.057]
[1766891420945,0.02449759,87849.0,87835.0,0.057]
[1766891421146,0.02449759,87848.0,87835.0,0.057]
[1766891421342,0.0113904,87855.0,87836.0,0.0113927]
[1766891421542,0.02478058,87854.0,87836.0,0.0113927]
[1766891421744,0.02478058,87853.0,87836.0,0.0113927]
[1766891421945,0.02478058,87852.0,87836.0,0.0113927]
[1766891422245,0.02478058,87851.0,87836.0,0.0113927]
[1766891422445,0.02478058,87850.0,87836.0,0.0113927]
[1766891422646,0.02478058,87849.0,87836.0,0.0113927]
[1766891422945,0.02478058,87848.0,87836.0,0.0113927]
[1766891423146,0.0113904,87855.0,87836.0,0.0113927]
[1766891423357,0.02477924,87854.0,87836.0,0.0113927]
[1766891423546,0.02477924,87853.0,87836.0,0.0113927]
[1766891423749,0.02477924,87852.0,87836.0,0.0113927]
[1766891423945,0.02477924,87851.0,87836.0,0.0113927]
[1766891424143,0.0113904,87855.0,87836.0,0.0113927]
[1766891424144,0.02477924,87850.0,87836.0,0.0113927]
[1766891424343,0.0113904,87855.0,87836.0,0.0113927]
[1766891424344,0.02477924,87849.0,87836.0,0.0113927]
[1766891424544,0.0113904,87855.0,87836.0,0.0113927]
[1766891424745,0.02477759,87854.0,87836.0,0.0113927]
[1766891424953,0.02477759,87853.0,87836.0,0.0113927]
[1766891425154,0.02477759,87852.0,87836.0,0.0113927]
[1766891425360,0.02477759,87851.0,87836.0,0.0113927]
[1766891425547,0.02477759,87850.0,87836.0,0.0113927]
[1766891425749,0.02477759,87849.0,87836.0,0.0113927]
[1766891425949,0.0113904,87855.0,87836.0,0.0113927]
[1766891426147,0.02477689,87854.0,87836.0,0.0113927]
[1766891426347,0.02477689,87853.0,87836.0,0.0113927]
[1766891426546,0.02477689,87852.0,87836.0,0.0113927]
[1766891426747,0.02477689,87851.0,87836.0,0.0113927]
[1766891426946,0.02477689,87850.0,87836.0,0.0113927]
[1766891427146,0.02477689,87849.0,87836.0,0.0113927]
[1766891427342,0.02477689,87848.0,87836.0,0.0113927]
[1766891427547,0.0113904,87855.0,87836.0,0.0113927]
[1766891427758,0.02507925,87854.0,87836.0,0.0113927]
[1766891427949,0.02507925,87853.0,87836.0,0.0113927]
[1766891428152,0.02507925,87852.0,87836.0,0.0113927]
[1766891428351,0.02507925,87851.0,87836.0,0.0113927]
[1766891428649,0.02507925,87850.0,87836.0,0.0113927]
[1766891428850,0.02507925,87849.0,87836.0,0.0113927]
[1766891429059,0.0113904,87855.0,87836.0,0.0113927]
[1766891429252,0.02507846,87854.0,87836.0,0.0113927]
[1766891429553,0.02507846,87853.0,87836.0,0.0113927]
[1766891429858,0.02507846,87852.0,87836.0,0.0113927]
[1766891430059,0.02507846,87851.0,87836.0,0.0113927]
[1766891430260,0.02507846,87850.0,87836.0,0.0113927]
[1766891430462,0.02507846,87849.0,87836.0,0.0113927]
[1766891430761,0.0113904,87855.0,87836.0,0.0113927]
[1766891430950,0.02507799,87854.0,87836.0,0.0113927]
[1766891431150,0.02507799,87853.0,87836.0,0.0113927]
[1766891431351,0.02507799,87852.0,87836.0,0.0113927]
[1766891431553,0.02507799,87851.0,87836.0,0.0113927]
[1766891431752,0.02507799,87850.0,87836.0,0.0113927]
[1766891431960,0.02507799,87849.0,87836.0,0.0113927]
[1766891432162,0.0113904,87855.0,87836.0,0.0113927]
[1766891432364,0.02507722,87854.0,87836.0,0.0113927]
[1766891432557,0.02507722,87853.0,87836.0,0.0113927]
[1766891432767,0.02507722,87852.0,87839.0,0.0113924]
[1766891432963,0.02507722,87851.0,87839.0,0.0113924]
[1766891433168,0.02507722,87850.0,87839.0,0.0113924]
[1766891433355,0.02507722,87849.0,87839.0,0.0113924]
[1766891433554,0.05696,87857.0,87839.0,0.0113924]
[1766891433760,0.02507735,87856.0,87839.0,0.0113924]
[1766891433960,0.02507735,87855.0,87839.0,0.0113924]
[1766891434262,0.02507735,87854.0,87839.0,0.0113924]
[1766891434460,0.02507735,87853.0,87839.0,0.0113924]
[1766891434665,0.02507735,87852.0,87839.0,0.0113924]
[1766891434865,0.02507735,87851.0,87839.0,0.0113924]
[1766891435066,0.02507735,87850.0,87839.0,0.0113924]
[1766891435370,0.02507735,87849.0,87839.0,0.0113924]
[1766891435583,0.05696,87857.0,87839.0,0.0113924]
[1766891435867,0.02506116,87856.0,87841.0,0.011392]
[1766891436063,0.05696,87857.0,87841.0,0.011392]
[1766891436064,0.02506116,87855.0,87841.0,0.011392]
[1766891436373,0.02506116,87854.0,87841.0,0.011392]
[1766891436568,0.05696,87857.0,87841.0,0.011392]
[1766891436569,0.02506116,87853.0,87841.0,0.011392]
[1766891436772,0.02506116,87852.0,87841.0,0.011392]
[1766891436970,0.02506116,87851.0,87841.0,0.011392]
[1766891437170,0.02506116,87850.0,87841.0,0.011392]
[1766891437470,0.05696,87857.0,87841.0,0.011392]
[1766891437672,0.02506197,87856.0,87841.0,0.011392]
[1766891437974,0.02506197,87855.0,87841.0,0.011392]
[1766891438175,0.02506197,87854.0,87841.0,0.011392]
[1766891438379,0.02506197,87853.0,87841.0,0.011392]
[1766891438588,0.02506197,87852.0,87841.0,0.011392]
[1766891438786,0.02506197,87851.0,87841.0,0.011392]
[1766891438984,0.02506197,87850.0,87841.0,0.011392]
[1766891439184,0.02506197,87849.0,87841.0,0.011392]
[1766891439491,0.02506197,87848.0,87841.0,0.011392]
[1766891439689,0.02506285,87847.0,87841.0,0.011392]
[1766891439889,0.05696,87857.0,87841.0,0.011392]
[1766891440092,0.02506285,87856.0,87841.0,0.011392]
[1766891440389,0.02506285,87855.0,87841.0,0.011392]
[1766891440590,0.02506285,87854.0,87841.0,0.011392]
[1766891440790,0.02506285,87853.0,87841.0,0.011392]
[1766891440991,0.02506285,87852.0,87841.0,0.011392]
[1766891441189,0.02506285,87851.0,87841.0,0.011392]
[1766891441390,0.02506285,87850.0,87841.0,0.011392]
[1766891441590,0.02506285,87849.0,87841.0,0.011392]
[1766891441789,0.02506285,87848.0,87841.0,0.011392]
[1766891441986,0.02506285,87847.0,87841.0,0.011392]
[1766891442192,0.05696,87857.0,87841.0,0.011392]
[1766891442491,0.025064,87856.0,87841.0,0.011392]
[1766891442694,0.025064,87855.0,87841.0,0.011392]
[1766891442883,0.025064,87854.0,87841.0,0.011392]
[1766891443192,0.025064,87853.0,87841.0,0.011392]
[1766891443491,0.025064,87852.0,87841.0,0.011392]
[1766891443691,0.025064,87851.0,87841.0,0.011392]
[1766891443991,0.025064,87850.0,87841.0,0.011392]
[1766891444192,0.025064,87849.0,87841.0,0.011392]
[1766891444384,0.025064,87848.0,87841.0,0.011392]
[1766891444584,0.025064,87847.0,87841.0,0.011392]
[1766891444883,0.0683501,87857.0,87841.0,0.011392]
[1766891445083,0.0250499,87856.0,87841.0,0.011392]
[1766891445282,0.0250499,87855.0,87841.0,0.011392]
[1766891445485,0.0250499,87854.0,87841.0,0.011392]
[1766891445685,0.0250499,87853.0,87841.0,0.011392]
[1766891445885,0.0250499,87852.0,87841.0,0.011392]
[1766891446092,0.0250499,87851.0,87841.0,0.011392]
[1766891446293,0.0250499,87850.0,87841.0,0.011392]
[1766891446489,0.0250499,87849.0,87841.0,0.011392]
[1766891446690,0.0250499,87848.0,87841.0,0.011392]
[1766891446891,0.0250499,87847.0,87841.0,0.011392]
[1766891447090,0.0250499,87846.0,87841.0,0.011392]
[1766891447295,0.0250499,87845.0,87841.0,0.011392]
[1766891447496,0.09684,87856.0,87841.0,0.011392]
[1766891447696,0.02505398,87855.0,87841.0,0.011392]
[1766891447892,0.02505398,87854.0,87841.0,0.011392]
[1766891448092,0.02505398,87853.0,87841.0,0.011392]
[1766891448294,0.02505398,87852.0,87841.0,0.011392]
[1766891448491,0.02505398,87851.0,87841.0,0.011392]
[1766891448690,0.02505398,87850.0,87841.0,0.011392]
[1766891448989,0.02505398,87849.0,87841.0,0.011392]
[1766891449297,0.02505398,87848.0,87841.0,0.011392]
[1766891449493,0.02505398,87847.0,87841.0,0.011392]
[1766891449696,0.09684,87856.0,87841.0,0.011392]
[1766891449888,0.02505852,87855.0,87841.0,0.011392]
[1766891450089,0.02505852,87854.0,87841.0,0.011392]
[1766891450288,0.02505852,87853.0,87841.0,0.011392]
[1766891450489,0.02505852,87852.0,87841.0,0.011392]
[1766891450784,0.02505852,87851.0,87841.0,0.011392]
[1766891450993,0.02505852,87850.0,87841.0,0.011392]
[1766891451297,0.02505852,87849.0,87841.0,0.011392]
[1766891451499,0.02505852,87848.0,87841.0,0.011392]
[1766891451692,0.02505852,87847.0,87841.0,0.011392]
[1766891451897,0.09684,87856.0,87841.0,0.011392]
[1766891452098,0.02505842,87855.0,87841.0,0.011392]
[1766891452304,0.02505842,87854.0,87841.0,0.011392]
[1766891452491,0.02505842,87853.0,87841.0,0.011392]
[1766891452690,0.02505842,87852.0,87841.0,0.011392]
[1766891452891,0.02505842,87851.0,87841.0,0.011392]
[1766891453095,0.02505842,87850.0,87841.0,0.011392]
[1766891453296,0.02505842,87849.0,87841.0,0.011392]
[1766891453496,0.02505842,87848.0,87841.0,0.011392]
[1766891453697,0.09684,87856.0,87841.0,0.011392]
[1766891453698,0.02505842,87847.0,87841.0,0.011392]
[1766891453898,0.09684,87856.0,87841.0,0.011392]
[1766891454199,0.0250584,87855.0,87841.0,0.011392]
[1766891454398,0.0250584,87854.0,87841.0,0.011392]
[1766891454600,0.0250584,87853.0,87841.0,0.011392]
[1766891454803,0.0250584,87852.0,87841.0,0.011392]
[1766891454998,0.0250584,87851.0,87841.0,0.011392]
[1766891455199,0.0250584,87850.0,87841.0,0.011392]
[1766891455399,0.0250584,87849.0,87841.0,0.011392]
[1766891455702,0.0250584,87848.0,87841.0,0.011392]
[1766891455901,0.0250584,87847.0,87841.0,0.011392]
[1766891456101,0.09684,87856.0,87841.0,0.011392]
[1766891456304,0.0250411,87855.0,87841.0,0.011392]
[1766891456503,0.0250411,87854.0,87841.0,0.011392]
[1766891456704,0.0250411,87853.0,87841.0,0.011392]
[1766891456904,0.0250411,87852.0,87841.0,0.011392]
[1766891457109,0.0250411,87851.0,87841.0,0.011392]
[1766891457293,0.0250411,87850.0,87841.0,0.011392]
[1766891457497,0.0250411,87849.0,87841.0,0.011392]
[1766891457692,0.0250411,87848.0,87841.0,0.011392]
[1766891457897,0.09684,87856.0,87841.0,0.011392]
[1766891458097,0.02469718,87855.0,87841.0,0.011392]
[1766891458298,0.02469718,87854.0,87841.0,0.011392]
[1766891458504,0.02469718,87853.0,87841.0,0.011392]
[1766891458705,0.02469718,87852.0,87841.0,0.011392]
[1766891458905,0.02469718,87851.0,87841.0,0.011392]
[1766891459203,0.02469718,87850.0,87841.0,0.011392]
[1766891459407,0.02469718,87849.0,87841.0,0.011392]
[1766891459605,0.02469718,87848.0,87841.0,0.011392]
[1766891459805,0.09684,87856.0,87841.0,0.011392]
[1766891460005,0.02469731,87855.0,87841.0,0.011392]
[1766891460305,0.02469731,87854.0,87841.0,0.011392]
[1766891460504,0.02469731,87853.0,87841.0,0.011392]
[1766891460704,0.02469731,87852.0,87841.0,0.011392]
[1766891460900,0.02469731,87851.0,87841.0,0.011392]
[1766891461100,0.02469731,87850.0,87841.0,0.011392]
[1766891461306,0.02469731,87849.0,87841.0,0.011392]
[1766891461609,0.02469731,87848.0,87841.0,0.011392]
[1766891461807,0.09684,87856.0,87841.0,0.011392]
[1766891462007,0.02469756,87855.0,87841.0,0.011392]
[1766891462208,0.02469756,87854.0,87838.0,0.0113924]
[1766891462411,0.11419722,87850.0,87838.0,0.0113924]
[1766891462602,0.02469756,87849.0,87838.0,0.0113924]
[1766891463308,0.02469756,87848.0,87838.0,0.0113924]
[1766891463509,0.09684,87856.0,87838.0,0.0113924]
[1766891463708,0.02469783,87855.0,87838.0,0.0113924]
[1766891463909,0.02469783,87854.0,87838.0,0.0113924]
[1766891464110,0.02469783,87853.0,87838.0,0.0113924]
[1766891464308,0.02469783,87852.0,87838.0,0.0113924]
[1766891464509,0.02469783,87851.0,87838.0,0.0113924]
[1766891464814,0.02469783,87850.0,87838.0,0.0113924]
[1766891465004,0.02469783,87849.0,87838.0,0.0113924]
[1766891465205,0.02469783,87848.0,87838.0,0.0113924]
[1766891465509,0.09684,87856.0,87838.0,0.0113924]
[1766891465712,0.02469809,87855.0,87838.0,0.0113924]
[1766891465904,0.02469809,87854.0,87838.0,0.0113924]
[1766891466104,0.02469809,87853.0,87838.0,0.0113924]
[1766891466407,0.02469809,87852.0,87838.0,0.0113924]
[1766891466609,0.02469809,87851.0,87838.0,0.0113924]
[1766891466809,0.02469809,87850.0,87838.0,0.0113924]
[1766891467010,0.02469809,87849.0,87838.0,0.0113924]
[1766891467210,0.02469809,87848.0,87838.0,0.0113924]
[1766891467511,0.09684,87856.0,87838.0,0.0113924]
[1766891467710,0.02469811,87855.0,87838.0,0.0113924]
[1766891467911,0.02469811,87854.0,87838.0,0.0113924]
[1766891468210,0.02469811,87853.0,87838.0,0.0113924]
[1766891468509,0.02469811,87852.0,87838.0,0.0113924]
[1766891468704,0.02469811,87851.0,87838.0,0.0113924]
[1766891469012,0.02469811,87850.0,87838.0,0.0113924]
[1766891469210,0.02469811,87849.0,87838.0,0.0113924]
[1766891469511,0.02469811,87848.0,87838.0,0.0113924]
[1766891469710,0.09684,87856.0,87838.0,0.0113924]
[1766891470012,0.0246982,87855.0,87838.0,0.0113924]
[1766891470208,0.0246982,87854.0,87838.0,0.0113924]
[1766891470408,0.0246982,87853.0,87838.0,0.0113924]
[1766891470610,0.0246982,87852.0,87838.0,0.0113924]
[1766891470910,0.09684,87856.0,87838.0,0.0113924]
[1766891470911,0.0246982,87851.0,87838.0,0.0113924]
[1766891471104,0.0246982,87850.0,87838.0,0.0113924]
[1766891471304,0.0246982,87849.0,87838.0,0.0113924]
[1766891471504,0.0246982,87848.0,87838.0,0.0113924]
[1766891471704,0.09684,87856.0,87838.0,0.0113924]
[1766891471910,0.02469825,87855.0,87838.0,0.0113924]
[1766891472117,0.02469825,87854.0,87838.0,0.0113924]
[1766891472309,0.02469825,87853.0,87838.0,0.0113924]
[1766891472508,0.02469825,87852.0,87838.0,0.0113924]
[1766891472711,0.02469825,87851.0,87838.0,0.0113924]
[1766891473016,0.02469825,87850.0,87838.0,0.0113924]
[1766891473316,0.02469825,87849.0,87838.0,0.0113924]
[1766891473614,0.02469825,87848.0,87838.0,0.0113924]
[1766891473815,0.0113904,87855.0,87838.0,0.0113924]
[1766891474015,0.02469817,87854.0,87838.0,0.0113924]
[1766891474213,0.02469817,87853.0,87838.0,0.0113924]
[1766891474413,0.02469817,87852.0,87838.0,0.0113924]
[1766891474713,0.02469817,87851.0,87838.0,0.0113924]
[1766891474914,0.02469817,87850.0,87838.0,0.0113924]
[1766891475113,0.02469817,87849.0,87838.0,0.0113924]
[1766891475314,0.0113904,87855.0,87838.0,0.0113924]
[1766891475315,0.02469817,87848.0,87838.0,0.0113924]
[1766891475514,0.0113904,87855.0,87838.0,0.0113924]
[1766891475711,0.02469812,87854.0,87838.0,0.0113924]
[1766891476010,0.02469812,87853.0,87838.0,0.0113924]
[1766891476211,0.02469812,87852.0,87838.0,0.0113924]
[1766891476411,0.02469812,87851.0,87838.0,0.0113924]
[1766891476613,0.02469812,87850.0,87838.0,0.0113924]
[1766891476816,0.02469812,87849.0,87838.0,0.0113924]
[1766891477116,0.02469812,87848.0,87838.0,0.0113924]
[1766891477315,0.0113904,87855.0,87838.0,0.0113924]
[1766891477517,0.02469809,87854.0,87838.0,0.0113924]
[1766891477712,0.02469809,87853.0,87838.0,0.0113924]
[1766891477914,0.02469809,87852.0,87838.0,0.0113924]
[1766891478113,0.02469809,87851.0,87838.0,0.0113924]
[1766891478311,0.02469809,87850.0,87838.0,0.0113924]
[1766891478514,0.02469809,87849.0,87838.0,0.0113924]
[1766891478714,0.02469809,87848.0,87838.0,0.0113924]
[1766891478914,0.0113904,87855.0,87838.0,0.0113924]
[1766891479116,0.12558832,87850.0,87827.0,0.0113939]
[1766891479419,0.00017073,87847.0,87827.0,0.0113939]
[1766891479609,0.0246981,87846.0,87827.0,0.0113939]
[1766891479814,0.0246981,87845.0,87827.0,0.0113939]
[1766891480010,0.0246981,87844.0,87827.0,0.0113939]
[1766891480215,0.02482529,87843.0,87830.0,0.0113935]
[1766891480517,0.0246981,87842.0,87830.0,0.0113935]
[1766891480716,0.0246981,87841.0,87830.0,0.0113935]
[1766891480920,0.00012719,87843.0,87830.0,0.0113935]
[1766891481110,0.02467862,87842.0,87830.0,0.0113935]
[1766891481315,0.02467862,87841.0,87830.0,0.12559072]
[1766891481621,0.00012719,87843.0,87830.0,0.12559072]
[1766891481821,0.02467394,87842.0,87830.0,0.12559072]
[1766891482012,0.02467394,87841.0,87830.0,0.12559072]
[1766891482219,0.00012719,87843.0,87830.0,0.12559072]
[1766891482420,0.02467037,87842.0,87830.0,0.12559072]
[1766891482618,0.00012719,87843.0,87830.0,0.12559072]
[1766891482619,0.02467037,87841.0,87830.0,0.12559072]
[1766891482920,0.00012719,87843.0,87830.0,0.12559072]
[1766891483113,0.02467037,87842.0,87830.0,0.12559072]
[1766891483319,0.02467037,87841.0,87830.0,0.12559072]
[1766891483521,0.00012719,87843.0,87830.0,0.0113935]
[1766891483713,0.02466631,87842.0,87826.0,0.011394]
[1766891484020,0.02466631,87841.0,87826.0,0.011394]
[1766891484220,0.02466631,87840.0,87826.0,0.011394]
[1766891484424,0.02466631,87839.0,87826.0,0.011394]
[1766891484607,0.02466631,87838.0,87826.0,0.011394]
[1766891484809,0.00012719,87843.0,87826.0,0.011394]
[1766891485111,0.02466139,87842.0,87826.0,0.011394]
[1766891485311,0.02466139,87841.0,87826.0,0.011394]
[1766891485507,0.02466139,87840.0,87826.0,0.011394]
[1766891485709,0.02466139,87839.0,87826.0,0.011394]
[1766891485917,0.02466139,87838.0,87826.0,0.011394]
[1766891486122,0.00012719,87843.0,87828.0,0.0113937]
[1766891486424,0.02465721,87842.0,87828.0,0.0113937]
[1766891486614,0.02465721,87841.0,87828.0,0.0113937]
[1766891486817,0.02465721,87840.0,87828.0,0.0113937]
[1766891487129,0.02465721,87839.0,87828.0,0.0113937]
[1766891487423,0.02465721,87838.0,87828.0,0.0113937]
[1766891487619,0.02494552,87837.0,87828.0,0.0113937]
[1766891487821,0.00012719,87843.0,87828.0,0.0113937]
[1766891488019,0.0249455,87842.0,87828.0,0.0113937]
[1766891488221,0.0249455,87841.0,87828.0,0.0113937]
[1766891488525,0.0249455,87840.0,87828.0,0.0113937]
[1766891488723,0.0249455,87839.0,87828.0,0.0113937]
[1766891488924,0.0249455,87838.0,87828.0,0.0113937]
[1766891489224,0.0249455,87837.0,87828.0,0.0113937]
[1766891489419,0.00012719,87843.0,87828.0,0.0113937]
[1766891489621,0.02494133,87842.0,87828.0,0.0113937]
[1766891489821,0.02494133,87841.0,87828.0,0.0113937]
[1766891490021,0.02494133,87840.0,87828.0,0.0113937]
[1766891490220,0.02494133,87839.0,87828.0,0.0113937]
[1766891490422,0.02494133,87838.0,87828.0,0.0113937]
[1766891490622,0.02494133,87837.0,87828.0,0.0113937]
[1766891490926,0.00012719,87843.0,87828.0,0.0113937]
[1766891491126,0.02494021,87842.0,87828.0,0.0113937]
[1766891491327,0.02494021,87841.0,87828.0,0.0113937]
[1766891491525,0.02494021,87840.0,87828.0,0.0113937]
[1766891491826,0.02494021,87839.0,87828.0,0.0113937]
[1766891492028,0.02494021,87838.0,87828.0,0.0113937]
[1766891492326,0.00012719,87843.0,87828.0,0.0113937]
[1766891492526,0.02493807,87842.0,87828.0,0.0113937]
[1766891492727,0.00012719,87843.0,87828.0,0.0113937]
[1766891492728,0.02493807,87841.0,87828.0,0.0113937]
[1766891492917,0.00012719,87843.0,87828.0,0.0113937]
[1766891492918,0.02493807,87840.0,87828.0,0.0113937]
[1766891493117,0.02493807,87839.0,87828.0,0.0113937]
[1766891493318,0.02493807,87838.0,87828.0,0.0113937]
[1766891493528,0.00012719,87843.0,87828.0,0.0113937]
[1766891493726,0.02493746,87842.0,87828.0,0.0113937]
[1766891493927,0.02493746,87841.0,87828.0,0.0113937]
[1766891494131,0.13913468,87840.0,87823.0,0.057]
[1766891494427,0.02493746,87839.0,87823.0,0.057]
[1766891495231,0.02493746,87839.0,87828.0,0.0113937]
[1766891496130,0.02493746,87839.0,87825.0,0.0113942]
[1766891497622,0.02493746,87839.0,87827.0,0.0113939]
[1766891497822,0.02493692,87838.0,87827.0,0.0113939]
[1766891498022,0.11419722,87840.0,87827.0,0.0113939]
[1766891498318,0.02493691,87839.0,87827.0,0.0113939]
[1766891498522,0.02493691,87838.0,87827.0,0.0113939]
[1766891498723,0.02493691,87837.0,87827.0,0.0113939]
[1766891498924,0.00012719,87843.0,87827.0,0.0113939]
[1766891499218,0.02493736,87842.0,87827.0,0.0113939]
[1766891499421,0.02493736,87841.0,87827.0,0.0113939]
[1766891499618,0.02493736,87840.0,87827.0,0.0113939]
[1766891499818,0.02493736,87839.0,87827.0,0.0113939]
[1766891500019,0.02493736,87838.0,87827.0,0.0113939]
[1766891500223,0.02493736,87837.0,87827.0,0.0113939]
[1766891500420,0.00012719,87843.0,87827.0,0.0113939]
[1766891500626,0.00012719,87843.0,87823.0,0.057]
[1766891500627,0.02493935,87842.0,87829.0,0.0113936]
[1766891500830,0.02493935,87841.0,87829.0,0.0113936]
[1766891501031,0.02493935,87840.0,87829.0,0.0113936]
[1766891501234,0.02493935,87839.0,87824.0,0.057]
[1766891501432,0.02493935,87838.0,87827.0,0.0113938]
[1766891501632,0.02493935,87837.0,87827.0,0.0113938]
[1766891501933,0.02493935,87836.0,87827.0,0.0113938]
[1766891502237,0.11419722,87840.0,87827.0,0.0113938]
[1766891502438,0.02494245,87839.0,87827.0,0.0113938]
[1766891502730,0.02494245,87838.0,87824.0,0.057]
[1766891502932,0.02494245,87837.0,87824.0,0.057]
[1766891503137,0.02494245,87836.0,87824.0,0.057]
[1766891503340,0.02494469,87835.0,87824.0,0.057]
[1766891503535,0.11419722,87840.0,87823.0,0.057]
[1766891503736,0.02494468,87839.0,87823.0,0.057]
[1766891503931,0.02494468,87838.0,87823.0,0.057]
[1766891504132,0.02494468,87837.0,87823.0,0.057]
[1766891504331,0.02494468,87836.0,87824.0,0.0113942]
[1766891504538,0.11419722,87840.0,87824.0,0.0113942]
[1766891504736,0.02494751,87839.0,87824.0,0.0113942]
[1766891504937,0.02494751,87838.0,87824.0,0.0113942]
[1766891505134,0.02494751,87837.0,87824.0,0.0113942]
[1766891505336,0.02494751,87836.0,87824.0,0.0113942]
[1766891505538,0.02494751,87835.0,87824.0,0.0113942]
[1766891505739,0.11419722,87840.0,87824.0,0.0113942]
[1766891505938,0.02495106,87839.0,87824.0,0.0113942]
[1766891506139,0.02495106,87838.0,87824.0,0.0113942]
[1766891506341,0.02495106,87837.0,87824.0,0.0113942]
[1766891506547,0.02495106,87836.0,87824.0,0.0113942]
[1766891506736,0.02495106,87835.0,87824.0,0.0113942]
[1766891506937,0.11419722,87840.0,87824.0,0.0113942]
[1766891507238,0.0249556,87839.0,87824.0,0.0113942]
[1766891507439,0.0249556,87838.0,87824.0,0.0113942]
[1766891507643,0.0249556,87837.0,87824.0,0.0113942]
[1766891507843,0.0249556,87836.0,87824.0,0.0113942]
[1766891508031,0.0249556,87835.0,87824.0,0.0113942]
[1766891508232,0.0249556,87834.0,87824.0,0.0113942]
[1766891508446,0.11419722,87840.0,87824.0,0.0113942]
[1766891508646,0.02497014,87839.0,87824.0,0.0113942]
[1766891508850,0.02497014,87838.0,87824.0,0.0113942]
[1766891509046,0.02497014,87837.0,87824.0,0.0113942]
[1766891509239,0.02497014,87836.0,87824.0,0.0113942]
[1766891509441,0.02497014,87835.0,87826.0,0.011394]
[1766891509652,0.02497014,87834.0,87826.0,0.011394]
[1766891509850,0.02497014,87833.0,87826.0,0.011394]
[1766891510051,0.02497014,87832.0,87826.0,0.011394]
[1766891510361,0.02497014,87831.0,87826.0,0.011394]
[1766891510561,0.11419722,87840.0,87826.0,0.011394]
[1766891510859,0.02484109,87839.0,87826.0,0.011394]
[1766891511061,0.02484109,87838.0,87826.0,0.011394]
[1766891511260,0.02484109,87837.0,87826.0,0.011394]
[1766891511559,0.02484109,87836.0,87826.0,0.011394]
[1766891511750,0.02484109,87835.0,87826.0,0.011394]
[1766891511951,0.02484109,87834.0,87826.0,0.011394]
[1766891512151,0.02484109,87833.0,87826.0,0.011394]
[1766891512459,0.02484109,87832.0,87824.0,0.057]
[1766891512762,0.02484109,87831.0,87824.0,0.057]
[1766891513058,0.11419722,87840.0,87824.0,0.057]
[1766891513259,0.02484234,87839.0,87825.0,0.0113941]
[1766891513560,0.02484234,87838.0,87825.0,0.0113941]
[1766891513761,0.02484234,87837.0,87825.0,0.0113941]
[1766891513962,0.02484234,87836.0,87825.0,0.0113941]
[1766891514164,0.02484234,87835.0,87825.0,0.0113941]
[1766891514351,0.02484234,87834.0,87825.0,0.0113941]
[1766891514659,0.02484234,87833.0,87825.0,0.0113941]
[1766891514855,0.02484234,87832.0,87825.0,0.0113941]
[1766891515160,0.02484234,87831.0,87825.0,0.0113941]
[1766891515362,4e-08,87830.0,87825.0,0.0113941]
[1766891515658,0.11419722,87840.0,87825.0,0.0113941]
[1766891515956,0.0113922,87841.0,87825.0,0.0113941]
[1766891520665,0.057,87842.0,87828.0,0.0113938]
[1766891522352,0.0113924,87840.0,87825.0,0.0113942]
[1766891522556,0.0113924,87840.0,87822.0,0.057]
[1766891522757,0.0113924,87840.0,87824.0,0.0113943]
[1766891523268,0.057,87842.0,87822.0,0.057]
[1766891523269,0.0113926,87838.0,87822.0,0.057]
[1766891523765,0.057,87842.0,87823.0,0.0113945]
[1766891523766,0.0113921,87841.0,87823.0,0.0113945]
[1766891524463,0.011393,87835.0,87809.0,0.01309041]
[1766891524660,0.0113932,87833.0,87817.0,0.0113952]
[1766891524972,0.0683932,87833.0,87817.0,0.0113952]
[1766891525970,0.0683932,87833.0,87814.0,0.0113956]
[1766891526164,0.0683932,87833.0,87816.0,0.0113953]
[1766891527367,0.02466535,87832.0,87816.0,0.0113953]
[1766891527564,0.02466535,87831.0,87816.0,0.0113953]
[1766891527765,0.02466535,87830.0,87816.0,0.0113953]
[1766891528068,0.02466535,87829.0,87816.0,0.0113953]
[1766891528263,0.02466535,87828.0,87816.0,0.0113953]
[1766891528470,0.02466535,87827.0,87816.0,0.0113953]
[1766891528658,0.02466535,87826.0,87816.0,0.0113953]
[1766891528860,0.02466535,87825.0,87816.0,0.0113953]
[1766891529172,0.0683932,87833.0,87816.0,0.0113953]
[1766891529173,0.02466535,87824.0,87816.0,0.0113953]
[1766891529371,0.02466535,87823.0,87816.0,0.0113953]
[1766891529673,0.02470182,87822.0,87810.0,0.15384]
[1766891529865,8.079e-05,87822.0,87804.0,0.0113968]
[1766891530066,8.079e-05,87822.0,87805.0,0.15384]
[1766891530973,8.079e-05,87822.0,87815.0,0.0113954]
[1766891531774,8.079e-05,87822.0,87818.0,0.0113951]
[1766891535972,0.057,87833.0,87818.0,0.0113951]
[1766891536271,0.02461744,87832.0,87818.0,0.0113951]
[1766891536577,0.02461744,87831.0,87818.0,0.0113951]
[1766891536877,0.02461744,87830.0,87818.0,0.0113951]
[1766891537078,0.02467344,87829.0,87818.0,0.0113951]
[1766891537279,0.02461744,87828.0,87818.0,0.0113951]
[1766891542287,0.02461744,87828.0,87820.0,0.0113948]
[1766891542490,0.057,87833.0,87820.0,0.0113948]
[1766891542987,0.00017073,87834.0,87820.0,0.0113948]
[1766891544289,0.00017073,87834.0,87822.0,0.0113945]
[1766891544472,0.00017073,87834.0,87824.0,0.0113942]
[1766891544976,0.00017073,87834.0,87826.0,0.011394]
[1766891549280,0.00017073,87834.0,87823.0,0.0113944]
[1766891551976,0.051,87837.0,87827.0,0.0113939]
[1766891552181,0.057,87837.0,87827.0,0.0113939]
[1766891552887,0.057,87837.0,87824.0,0.0113943]
[1766891554585,0.0244953,87836.0,87824.0,0.0113943]
[1766891554885,0.0244953,87835.0,87824.0,0.0113943]
[1766891555086,0.0244953,87834.0,87824.0,0.0113943]
[1766891555282,0.0244953,87833.0,87824.0,0.0113943]
[1766891555479,0.0244953,87832.0,87824.0,0.0113943]
[1766891555680,0.0244953,87831.0,87824.0,0.0113943]
[1766891555980,0.0244953,87830.0,87824.0,0.0113943]
[1766891556282,0.057,87837.0,87824.0,0.0113943]
[1766891557485,0.057,87837.0,87823.0,7.3e-07]
[1766891557790,0.0113933,87832.0,87823.0,7.3e-07]
[1766891568298,0.02438791,87831.0,87823.0,7.3e-07]
[1766891568498,0.02438791,87830.0,87823.0,7.3e-07]
[1766891568699,0.02438791,87829.0,87823.0,7.3e-07]
[1766891568896,0.02438791,87828.0,87823.0,7.3e-07]
[1766891569097,0.0113933,87832.0,87823.0,7.3e-07]